[Event "Božićni turnir u VaraždinskimToplicama 26.12.2025."]
[Site "Varazdinske Toplice, Croatia"]
[Date "2025.12.26"]
[Round "3.11"]
[White "Bicanic, Mile"]
[Black "Mitrovic, Boris"]
[Result "*"]
[TimeControl "10"]
[WhiteFideId "14579995"]
[BlackFideId "14610655"]
[WhiteElo "1761"]
[BlackElo "1968"]

1. d4 {[%clk 00:10:00]} Nf6 {[%clk 00:09:58]} {[%emt 00:00:03]} 2. Bf4 {[%clk
00:09:57]} {[%emt 00:00:02]} e6 {[%clk 00:09:57]} {[%emt 00:00:02]} 3. e3
{[%clk 00:09:55]} {[%emt 00:00:01]} c5 {[%clk 00:09:56]} 4. c3 {[%clk
00:09:52]} {[%emt 00:00:03]} Nc6 {[%clk 00:09:56]} 5. Nf3 {[%clk 00:09:49]}
{[%emt 00:00:03]} d5 {[%clk 00:09:55]} 6. Bd3 {[%clk 00:09:47]} {[%emt
00:00:02]} Bd6 {[%clk 00:09:54]} {[%emt 00:00:01]} 7. Bg3 {[%clk 00:09:46]}
{[%emt 00:00:01]} O-O {[%clk 00:09:53]} {[%emt 00:00:02]} 8. Nbd2 {[%clk
00:09:44]} {[%emt 00:00:01]} b6 {[%clk 00:09:49]} {[%emt 00:00:04]} 9. Ne5
{[%clk 00:09:43]} Qc7 {[%clk 00:09:45]} {[%emt 00:00:04]} 10. Ndf3 {[%clk
00:09:34]} {[%emt 00:00:09]} Ne4 {[%clk 00:09:35]} {[%emt 00:00:10]} 11. Nxc6
{[%clk 00:09:04]} {[%emt 00:00:29]} Qxc6 {[%clk 00:09:28]} {[%emt 00:00:08]} 12.
Ne5 {[%clk 00:08:51]} {[%emt 00:00:13]} Qc7 {[%clk 00:09:28]} 13. f4 {[%clk
00:08:41]} {[%emt 00:00:10]} Bb7 {[%clk 00:09:03]} {[%emt 00:00:24]} 14. Bxe4
{[%clk 00:08:35]} {[%emt 00:00:06]} dxe4 {[%clk 00:09:02]} {[%emt 00:00:02]} 15.
Qh5 {[%clk 00:08:26]} {[%emt 00:00:08]} f6 {[%clk 00:07:46]} {[%emt 00:01:16]}
16. Ng4 {[%clk 00:08:09]} {[%emt 00:00:17]} Rac8 {[%clk 00:07:25]} {[%emt
00:00:21]} 17. O-O {[%clk 00:07:58]} {[%emt 00:00:11]} Qf7 {[%clk 00:07:18]}
{[%emt 00:00:07]} 18. Qh3 {[%clk 00:07:53]} {[%emt 00:00:05]} Rcd8 {[%clk
00:07:10]} {[%emt 00:00:08]} 19. f5 {[%clk 00:07:19]} {[%emt 00:00:35]} exf5
{[%clk 00:07:02]} {[%emt 00:00:08]} 20. Rxf5 {[%clk 00:06:52]} {[%emt
00:00:27]} Bc8 {[%clk 00:07:01]} 21. Bxd6 {[%clk 00:06:29]} {[%emt 00:00:23]}
Rxd6 {[%clk 00:06:54]} {[%emt 00:00:07]} 22. Qg3 {[%clk 00:06:27]} {[%emt
00:00:02]} Qd7 {[%clk 00:05:51]} {[%emt 00:01:04]} 23. Rf4 {[%clk 00:06:01]}
{[%emt 00:00:25]} cxd4 {[%clk 00:05:12]} {[%emt 00:00:39]} 24. cxd4 {[%clk
00:05:48]} {[%emt 00:00:14]} Bb7 {[%clk 00:05:09]} {[%emt 00:00:03]} 25. Rff1
{[%clk 00:05:30]} {[%emt 00:00:18]} Rc6 {[%clk 00:05:01]} {[%emt 00:00:08]} 26.
Rac1 {[%clk 00:05:15]} {[%emt 00:00:14]} Rfc8 {[%clk 00:05:00]} {[%emt
00:00:01]} 27. Rxc6 {[%clk 00:04:43]} {[%emt 00:00:32]} Rxc6 {[%clk 00:04:52]}
{[%emt 00:00:09]} 28. Nxf6+ {[%clk 00:04:34]} {[%emt 00:00:08]} Rxf6 {[%clk
00:04:51]} {[%emt 00:00:01]} 29. Rxf6 {[%emt 00:00:01]} g6 {[%emt 00:00:29]} 30.
Qb8+ {[%clk 00:03:38]} {[%emt 00:00:26]} Bc8 {[%clk 00:04:49]} {[%emt
00:00:02]} 31. Qd6 {[%clk 00:03:23]} {[%emt 00:00:15]} Qxd6 {[%clk 00:04:21]}
{[%emt 00:00:29]} 32. Rxd6 {[%clk 00:03:22]} {[%emt 00:00:01]} Kf7 {[%clk
00:04:20]} {[%emt 00:00:01]} 33. Rd5 {[%clk 00:03:14]} {[%emt 00:00:07]} h5
{[%emt 00:00:14]} 34. Re5 {[%clk 00:03:13]} Bb7 {[%clk 00:03:56]} {[%emt
00:00:11]} 35. Kf2 {[%clk 00:03:11]} {[%emt 00:00:01]} Bc6 {[%clk 00:03:53]}
{[%emt 00:00:04]} 36. a3 {[%clk 00:03:08]} {[%emt 00:00:04]} Kf6 {[%clk
00:03:50]} {[%emt 00:00:02]} 37. Ke2 {[%clk 00:03:04]} {[%emt 00:00:04]} h4
{[%clk 00:03:42]} {[%emt 00:00:07]} 38. g3 {[%clk 00:02:58]} {[%emt 00:00:07]}
hxg3 {[%clk 00:03:40]} {[%emt 00:00:02]} 39. hxg3 {[%clk 00:02:57]} Kf7 {[%clk
00:03:35]} {[%emt 00:00:07]} 40. g4 {[%clk 00:02:53]} {[%emt 00:00:04]} Kf6
{[%clk 00:03:31]} {[%emt 00:00:03]} 41. g5+ {[%clk 00:02:52]} {[%emt 00:00:02]}
Kf7 {[%clk 00:03:30]} 42. Kd2 {[%clk 00:02:51]} Bb7 {[%clk 00:03:26]} {[%emt
00:00:05]} 43. Kc3 {[%clk 00:02:50]} {[%emt 00:00:02]} Bc6 {[%clk 00:03:25]}
{[%emt 00:00:01]} 44. Kb4 {[%clk 00:02:48]} {[%emt 00:00:01]} a6 {[%clk
00:03:19]} {[%emt 00:00:06]} 45. a4 {[%clk 00:02:44]} {[%emt 00:00:04]} a5+
{[%clk 00:03:13]} {[%emt 00:00:07]} 46. Ka3 {[%clk 00:02:34]} {[%emt 00:00:10]}
Bb7 {[%clk 00:03:01]} {[%emt 00:00:11]} 47. b4 {[%clk 00:02:33]} axb4+ {[%clk
00:02:58]} {[%emt 00:00:03]} 48. Kxb4 {[%clk 00:02:32]} {[%emt 00:00:01]} Bc6
{[%clk 00:02:57]} 49. a5 {[%clk 00:02:27]} {[%emt 00:00:06]} bxa5+ {[%clk
00:02:56]} {[%emt 00:00:01]} 50. Kxa5 {[%clk 00:02:27]} Bb7 {[%clk 00:02:54]}
{[%emt 00:00:02]} 51. Kb6 {[%clk 00:02:26]} {[%emt 00:00:01]} Ba8 {[%clk
00:02:53]} 52. Kc7 {[%clk 00:02:22]} {[%emt 00:00:04]} Kf8 {[%clk 00:02:50]}
{[%emt 00:00:04]} 53. Kd6 {[%clk 00:02:21]} Kf7 {[%clk 00:02:49]} 54. Re6
{[%clk 00:02:16]} {[%emt 00:00:06]} Kg7 {[%clk 00:02:42]} {[%emt 00:00:07]} 55.
Rf6 {[%clk 00:02:15]} {[%emt 00:00:02]} Bb7 {[%clk 00:02:39]} {[%emt 00:00:03]}
56. Ke5 {[%clk 00:02:13]} Ba8 {[%clk 00:02:34]} {[%emt 00:00:05]} 57. d5 {[%clk
00:02:11]} {[%emt 00:00:02]} Bb7 {[%clk 00:02:32]} {[%emt 00:00:02]} 58. d6
{[%clk 00:02:10]} {[%emt 00:00:01]} Bc6 {[%clk 00:02:31]} 59. Ke6 {[%clk
00:02:06]} {[%emt 00:00:03]} *

[Event "Božićni turnir u VaraždinskimToplicama 26.12.2025."]
[Site "Varazdinske Toplice, Croatia"]
[Date "2025.12.26"]
[Round "3.12"]
[White "Hergotic, Ivica"]
[Black "Kovacek, Pavlo"]
[Result "*"]
[TimeControl "10"]
[WhiteFideId "14523884"]
[BlackFideId "14559200"]
[WhiteElo "2054"]
[BlackElo "1704"]

1. e4 {[%clk 00:09:59]} c5 {[%clk 00:09:59]} {[%emt 00:00:02]} 2. f4 {[%clk
00:09:58]} d5 {[%clk 00:09:57]} {[%emt 00:00:02]} 3. e5 {[%clk 00:09:57]} Bf5
{[%clk 00:09:55]} {[%emt 00:00:02]} 4. Ne2 {[%clk 00:09:56]} {[%emt 00:00:01]}
e6 {[%clk 00:09:50]} {[%emt 00:00:06]} 5. Ng3 {[%clk 00:09:55]} Bg6 {[%clk
00:09:48]} {[%emt 00:00:01]} 6. Be2 {[%clk 00:09:45]} {[%emt 00:00:10]} Be7
{[%clk 00:09:31]} {[%emt 00:00:18]} 7. d3 {[%clk 00:09:39]} {[%emt 00:00:07]}
Nc6 {[%clk 00:09:25]} {[%emt 00:00:05]} 8. Be3 {[%clk 00:09:30]} {[%emt
00:00:09]} a6 {[%clk 00:09:18]} {[%emt 00:00:08]} 9. O-O {[%clk 00:09:21]}
{[%emt 00:00:08]} d4 {[%clk 00:08:52]} {[%emt 00:00:25]} 10. Bf2 {[%clk
00:09:18]} {[%emt 00:00:03]} Nh6 {[%clk 00:08:51]} {[%emt 00:00:02]} 11. Nd2
{[%clk 00:09:08]} {[%emt 00:00:10]} Nf5 {[%clk 00:08:23]} {[%emt 00:00:28]} 12.
Bf3 {[%clk 00:08:24]} {[%emt 00:00:44]} Rc8 {[%clk 00:08:20]} {[%emt 00:00:03]}
13. Nxf5 {[%clk 00:07:40]} {[%emt 00:00:44]} exf5 {[%clk 00:08:03]} {[%emt
00:00:17]} 14. a4 {[%clk 00:07:19]} {[%emt 00:00:21]} O-O {[%clk 00:07:59]}
{[%emt 00:00:05]} 15. Bxc6 {[%clk 00:06:24]} {[%emt 00:00:54]} Rxc6 {[%clk
00:07:55]} {[%emt 00:00:04]} 16. a5 {[%clk 00:06:21]} {[%emt 00:00:03]} f6
{[%clk 00:07:45]} {[%emt 00:00:10]} 17. Nc4 {[%clk 00:05:33]} {[%emt 00:00:48]}
Bf7 {[%clk 00:07:38]} {[%emt 00:00:07]} 18. Nb6 {[%clk 00:05:16]} {[%emt
00:00:17]} Qc7 {[%clk 00:07:18]} {[%emt 00:00:21]} 19. Re1 {[%clk 00:05:13]}
{[%emt 00:00:02]} fxe5 {[%clk 00:07:01]} {[%emt 00:00:17]} 20. fxe5 {[%clk
00:05:11]} {[%emt 00:00:02]} g5 {[%clk 00:06:55]} {[%emt 00:00:07]} 21. Qf3
{[%clk 00:04:59]} {[%emt 00:00:11]} Be6 {[%clk 00:06:21]} {[%emt 00:00:34]} 22.
c3 {[%clk 00:04:43]} {[%emt 00:00:16]} dxc3 {[%clk 00:06:07]} {[%emt 00:00:14]}
23. bxc3 {[%clk 00:04:41]} {[%emt 00:00:02]} Qd8 {[%clk 00:06:00]} {[%emt
00:00:07]} 24. d4 {[%clk 00:04:36]} {[%emt 00:00:05]} g4 {[%clk 00:05:48]}
{[%emt 00:00:12]} 25. Qd3 {[%clk 00:04:27]} {[%emt 00:00:08]} c4 {[%clk
00:05:20]} {[%emt 00:00:28]} 26. Qd1 {[%clk 00:04:18]} {[%emt 00:00:10]} Bd5
{[%clk 00:05:10]} {[%emt 00:00:11]} 27. Nxd5 {[%clk 00:04:05]} {[%emt
00:00:12]} Qxd5 {[%clk 00:05:09]} {[%emt 00:00:01]} 28. Qb1 {[%clk 00:03:58]}
{[%emt 00:00:07]} Rg6 {[%clk 00:04:59]} {[%emt 00:00:09]} 29. Qc2 {[%clk
00:03:39]} {[%emt 00:00:20]} h5 {[%clk 00:04:53]} {[%emt 00:00:06]} 30. Qe2
{[%clk 00:03:26]} {[%emt 00:00:13]} h4 {[%clk 00:04:47]} {[%emt 00:00:06]} 31.
Ra4 {[%clk 00:03:05]} {[%emt 00:00:21]} Rc8 {[%clk 00:04:24]} {[%emt 00:00:23]}
32. g3 {[%clk 00:02:38]} {[%emt 00:00:27]} h3 {[%clk 00:04:03]} {[%emt
00:00:21]} 33. Be3 {[%clk 00:02:36]} {[%emt 00:00:02]} Qc6 {[%clk 00:03:55]}
{[%emt 00:00:08]} 34. Ra2 {[%clk 00:02:28]} {[%emt 00:00:08]} Rf8 {[%clk
00:03:38]} {[%emt 00:00:18]} 35. Rf1 {[%clk 00:02:25]} {[%emt 00:00:02]} b5
{[%clk 00:02:30]} {[%emt 00:01:08]} 36. axb6 {[%clk 00:02:23]} {[%emt
00:00:02]} Qxb6 {[%clk 00:02:29]} 37. Qxc4+ {[%clk 00:02:20]} {[%emt 00:00:03]}
Kh7 {[%clk 00:02:19]} {[%emt 00:00:10]} 38. Qd3 {[%clk 00:02:16]} {[%emt
00:00:04]} Qe6 {[%clk 00:02:01]} {[%emt 00:00:18]} 39. Raf2 {[%clk 00:02:00]}
{[%emt 00:00:16]} Qc6 {[%clk 00:01:30]} {[%emt 00:00:31]} 40. d5 {[%clk
00:01:54]} {[%emt 00:00:06]} Qc8 {[%clk 00:01:24]} {[%emt 00:00:06]} 41. d6
{[%clk 00:01:44]} {[%emt 00:00:10]} Bd8 {[%clk 00:01:17]} {[%emt 00:00:07]} 42.
Rxf5 {[%clk 00:01:39]} {[%emt 00:00:05]} Rxf5 {[%clk 00:01:05]} {[%emt
00:00:11]} 43. Rxf5 {[%clk 00:01:32]} {[%emt 00:00:08]} Qb7 {[%clk 00:00:59]}
{[%emt 00:00:06]} 44. Rf2 {[%clk 00:01:24]} {[%emt 00:00:07]} Kg7 {[%clk
00:00:51]} {[%emt 00:00:09]} 45. Bd4 {[%clk 00:01:10]} {[%emt 00:00:14]} Bb6
{[%clk 00:00:49]} {[%emt 00:00:02]} 46. e6+ {[%clk 00:01:04]} {[%emt 00:00:06]}
Bxd4 {[%clk 00:00:45]} {[%emt 00:00:04]} 47. Qxd4+ {[%clk 00:01:02]} {[%emt
00:00:02]} Kh6 {[%clk 00:00:42]} {[%emt 00:00:03]} 48. Qf4+ {[%clk 00:00:42]}
{[%emt 00:00:19]} Kh5 {[%clk 00:00:39]} {[%emt 00:00:04]} 49. Qf5+ {[%clk
00:00:36]} {[%emt 00:00:06]} Rg5 {[%clk 00:00:38]} {[%emt 00:00:01]} 50. Qf7+
{[%clk 00:00:33]} {[%emt 00:00:03]} *

[Event "Božićni turnir u VaraždinskimToplicama 26.12.2025."]
[Site "Varazdinske Toplice, Croatia"]
[Date "2025.12.26"]
[Round "3.15"]
[White "Kunovac, Marin"]
[Black "Lolic, Frano"]
[Result "1-0"]
[TimeControl "10"]
[WhiteFideId "79326005"]
[BlackFideId "79320708"]
[WhiteElo "1415"]
[BlackElo "1415"]

1. e4 {[%clk 00:09:58]} {[%emt 00:00:02]} c5 {[%clk 00:09:59]} {[%emt
00:00:02]} 2. Nf3 {[%clk 00:09:55]} {[%emt 00:00:02]} e6 {[%clk 00:09:58]}
{[%emt 00:00:02]} 3. d4 {[%clk 00:09:53]} {[%emt 00:00:02]} cxd4 {[%clk
00:09:56]} {[%emt 00:00:02]} 4. Nxd4 {[%clk 00:09:51]} {[%emt 00:00:02]} a6
{[%clk 00:09:54]} {[%emt 00:00:02]} 5. Nc3 {[%clk 00:09:47]} {[%emt 00:00:03]}
Qc7 {[%clk 00:09:53]} {[%emt 00:00:02]} 6. Be3 {[%clk 00:09:28]} {[%emt
00:00:19]} Bb4 {[%clk 00:09:51]} {[%emt 00:00:02]} 7. Qd3 {[%clk 00:09:14]}
{[%emt 00:00:14]} Nf6 {[%clk 00:09:46]} {[%emt 00:00:05]} 8. Bd2 {[%clk
00:09:05]} {[%emt 00:00:09]} O-O {[%clk 00:09:28]} {[%emt 00:00:17]} 9. a3
{[%clk 00:08:46]} {[%emt 00:00:20]} Bxc3 {[%clk 00:09:26]} {[%emt 00:00:02]} 10.
Bxc3 {[%clk 00:08:40]} {[%emt 00:00:07]} d6 {[%clk 00:09:21]} {[%emt 00:00:04]}
11. Nf3 {[%clk 00:08:35]} {[%emt 00:00:03]} Nbd7 {[%clk 00:09:19]} {[%emt
00:00:03]} 12. Ng5 {[%clk 00:08:15]} {[%emt 00:00:20]} h6 {[%clk 00:08:56]}
{[%emt 00:00:23]} 13. Bxf6 {[%clk 00:08:05]} {[%emt 00:00:10]} Nxf6 {[%clk
00:08:54]} {[%emt 00:00:03]} 14. Nf3 {[%clk 00:07:54]} {[%emt 00:00:11]} b5
{[%clk 00:08:39]} {[%emt 00:00:15]} 15. Be2 {[%clk 00:07:46]} {[%emt 00:00:07]}
Bb7 {[%clk 00:08:36]} {[%emt 00:00:03]} 16. Nd2 {[%clk 00:07:44]} {[%emt
00:00:02]} Rac8 {[%clk 00:08:30]} {[%emt 00:00:07]} 17. c3 {[%clk 00:07:38]}
{[%emt 00:00:05]} d5 {[%clk 00:08:15]} {[%emt 00:00:16]} 18. exd5 {[%clk
00:07:30]} {[%emt 00:00:08]} Nxd5 {[%clk 00:08:13]} {[%emt 00:00:03]} 19. O-O
{[%clk 00:07:21]} {[%emt 00:00:08]} Nf4 {[%clk 00:07:53]} {[%emt 00:00:20]} 20.
Qe3 {[%clk 00:06:43]} {[%emt 00:00:38]} Nxg2 {[%clk 00:07:29]} {[%emt
00:00:24]} 21. Qg3 {[%clk 00:06:26]} {[%emt 00:00:16]} Qxg3 {[%clk 00:07:05]}
{[%emt 00:00:25]} 22. hxg3 {[%clk 00:06:21]} {[%emt 00:00:04]} Rfd8 {[%clk
00:06:16]} {[%emt 00:00:49]} 23. Bf3 {[%clk 00:06:14]} {[%emt 00:00:07]} Bxf3
{[%clk 00:05:08]} {[%emt 00:01:09]} 24. Nxf3 {[%clk 00:06:10]} {[%emt
00:00:02]} Nf4 {[%clk 00:04:46]} {[%emt 00:00:23]} 25. gxf4 {[%clk 00:06:07]}
{[%emt 00:00:03]} Rc4 {[%emt 00:00:04]} 26. Rad1 {[%clk 00:05:54]} {[%emt
00:00:11]} Rdc8 {[%clk 00:04:36]} {[%emt 00:00:09]} 27. Rd4 {[%clk 00:05:22]}
{[%emt 00:00:32]} f6 {[%clk 00:03:54]} {[%emt 00:00:42]} 28. Rfd1 {[%clk
00:05:17]} {[%emt 00:00:05]} Rxd4 {[%emt 00:00:37]} 29. Nxd4 {[%clk 00:05:08]}
{[%emt 00:00:07]} Kf7 {[%clk 00:03:09]} {[%emt 00:00:10]} 30. f5 {[%clk
00:04:54]} {[%emt 00:00:14]} exf5 {[%clk 00:02:59]} {[%emt 00:00:11]} 31. Nxf5
{[%clk 00:04:51]} {[%emt 00:00:02]} Kg6 {[%clk 00:02:37]} {[%emt 00:00:22]} 32.
Ne7+ {[%clk 00:04:49]} {[%emt 00:00:02]} 1-0

[Event "Božićni turnir u VaraždinskimToplicama 26.12.2025."]
[Site "Varazdinske Toplice, Croatia"]
[Date "2025.12.26"]
[Round "4.2"]
[White "Bozinovic, Bogdan"]
[Black "Petrus, Adrian"]
[Result "0-1"]
[TimeControl "10"]
[WhiteFideId "14502593"]
[BlackFideId "14573652"]
[WhiteElo "2129"]
[BlackElo "1636"]

1. d4 {[%clk 00:09:58]} Nf6 {[%clk 00:09:59]} {[%emt 00:00:02]} 2. c4 {[%clk
00:09:57]} e6 {[%clk 00:09:58]} {[%emt 00:00:02]} 3. Nc3 {[%clk 00:09:55]}
{[%emt 00:00:01]} Bb4 {[%clk 00:09:57]} {[%emt 00:00:02]} 4. f3 {[%clk
00:09:54]} d5 {[%clk 00:09:55]} {[%emt 00:00:03]} 5. a3 {[%clk 00:09:53]} Bxc3+
{[%clk 00:09:51]} {[%emt 00:00:04]} 6. bxc3 {[%clk 00:09:51]} {[%emt 00:00:01]}
O-O {[%clk 00:09:36]} {[%emt 00:00:15]} 7. cxd5 {[%clk 00:09:50]} exd5 {[%clk
00:09:35]} {[%emt 00:00:01]} 8. e3 {[%clk 00:09:49]} {[%emt 00:00:01]} b6
{[%clk 00:09:15]} {[%emt 00:00:21]} 9. Ra2 {[%clk 00:09:44]} {[%emt 00:00:04]}
c5 {[%clk 00:09:09]} {[%emt 00:00:07]} 10. Bd3 {[%clk 00:09:41]} {[%emt
00:00:02]} Ba6 {[%clk 00:08:59]} {[%emt 00:00:10]} 11. Ne2 {[%clk 00:09:39]}
{[%emt 00:00:02]} Bxd3 12. Qxd3 {[%clk 00:09:37]} Nc6 {[%clk 00:08:53]} 13. O-O
{[%clk 00:09:34]} {[%emt 00:00:03]} Re8 {[%clk 00:08:53]} {[%emt 00:00:02]} 14.
Ng3 {[%clk 00:09:30]} {[%emt 00:00:03]} Qd7 {[%clk 00:08:30]} {[%emt 00:00:23]}
15. Re2 {[%clk 00:09:06]} {[%emt 00:00:24]} Rad8 {[%clk 00:08:23]} {[%emt
00:00:07]} 16. Bb2 {[%clk 00:08:52]} {[%emt 00:00:14]} cxd4 {[%clk 00:07:52]}
{[%emt 00:00:32]} 17. cxd4 {[%clk 00:08:50]} {[%emt 00:00:01]} g6 {[%clk
00:07:07]} {[%emt 00:00:45]} 18. e4 {[%clk 00:08:21]} {[%emt 00:00:29]} h5
{[%clk 00:06:55]} {[%emt 00:00:12]} 19. e5 {[%clk 00:08:14]} {[%emt 00:00:07]}
Nh7 {[%clk 00:06:48]} {[%emt 00:00:07]} 20. f4 {[%clk 00:07:59]} {[%emt
00:00:15]} h4 {[%clk 00:06:22]} {[%emt 00:00:27]} 21. Nh1 {[%clk 00:07:51]}
{[%emt 00:00:07]} Ne7 {[%clk 00:06:12]} {[%emt 00:00:10]} 22. Nf2 {[%clk
00:07:36]} {[%emt 00:00:15]} Nf5 {[%clk 00:06:09]} {[%emt 00:00:03]} 23. Qh3
{[%clk 00:06:55]} {[%emt 00:00:41]} Rc8 {[%clk 00:05:40]} {[%emt 00:00:30]} 24.
g4 {[%clk 00:06:49]} {[%emt 00:00:05]} hxg3 {[%clk 00:05:27]} {[%emt 00:00:13]}
25. hxg3 {[%clk 00:06:48]} {[%emt 00:00:02]} Qb5 {[%clk 00:05:18]} {[%emt
00:00:08]} 26. Rfe1 {[%clk 00:06:13]} {[%emt 00:00:35]} Qb3 {[%clk 00:05:10]}
{[%emt 00:00:08]} 27. Kg2 {[%clk 00:06:01]} {[%emt 00:00:12]} Ng7 {[%clk
00:03:43]} {[%emt 00:01:28]} 28. g4 {[%clk 00:05:46]} {[%emt 00:00:15]} Qxh3+
{[%clk 00:03:41]} {[%emt 00:00:02]} 29. Kxh3 {[%clk 00:05:20]} {[%emt
00:00:25]} Rc4 {[%clk 00:03:40]} {[%emt 00:00:01]} 30. Nd3 {[%clk 00:05:07]}
{[%emt 00:00:13]} Rec8 {[%clk 00:03:36]} {[%emt 00:00:05]} 31. Nb4 {[%clk
00:05:06]} {[%emt 00:00:01]} Ne6 {[%clk 00:03:22]} {[%emt 00:00:14]} 32. Rf2
{[%clk 00:04:42]} {[%emt 00:00:23]} Rd8 {[%clk 00:03:11]} {[%emt 00:00:11]} 33.
Rd1 {[%clk 00:04:37]} {[%emt 00:00:06]} a5 {[%clk 00:03:06]} {[%emt 00:00:05]}
34. Nc2 {[%clk 00:04:20]} {[%emt 00:00:16]} Nxf4+ {[%clk 00:02:58]} {[%emt
00:00:08]} 35. Rxf4 {[%clk 00:04:11]} {[%emt 00:00:10]} Rxc2 {[%clk 00:02:58]}
36. Rb1 {[%clk 00:04:00]} {[%emt 00:00:10]} Rdc8 {[%clk 00:02:53]} {[%emt
00:00:05]} 37. Rf3 {[%clk 00:03:47]} {[%emt 00:00:13]} Ng5+ {[%clk 00:02:51]}
{[%emt 00:00:02]} 38. Kg3 {[%clk 00:03:46]} {[%emt 00:00:01]} Nxf3 {[%clk
00:02:49]} {[%emt 00:00:02]} 39. Kxf3 {[%clk 00:03:45]} Kf8 {[%clk 00:02:45]}
{[%emt 00:00:05]} 40. Kf4 {[%clk 00:03:44]} {[%emt 00:00:01]} Ke7 {[%clk
00:02:44]} {[%emt 00:00:01]} 41. Kg5 {[%clk 00:03:43]} b5 {[%clk 00:02:37]}
{[%emt 00:00:07]} 42. Ba1 {[%clk 00:03:38]} {[%emt 00:00:05]} Ra2 {[%clk
00:02:36]} 43. Bb2 {[%clk 00:03:25]} {[%emt 00:00:14]} Rc4 {[%clk 00:02:29]}
{[%emt 00:00:07]} 44. Bc1 {[%clk 00:03:15]} {[%emt 00:00:09]} b4 {[%clk
00:02:26]} {[%emt 00:00:04]} 45. axb4 {[%clk 00:03:08]} {[%emt 00:00:06]} Rxb4
{[%clk 00:02:25]} {[%emt 00:00:02]} 0-1

[Event "Božićni turnir u VaraždinskimToplicama 26.12.2025."]
[Site "Varazdinske Toplice, Croatia"]
[Date "2025.12.26"]
[Round "4.3"]
[White "Radic, Goran"]
[Black "Hergotic, Ivica"]
[Result "1-0"]
[TimeControl "10"]
[WhiteFideId "14533995"]
[BlackFideId "14523884"]
[WhiteElo "2051"]
[BlackElo "2054"]

1. d4 {[%clk 00:10:00]} {[%emt 00:13:02]} Nf6 {[%clk 00:09:56]} {[%emt
00:00:34]} 2. Nc3 {[%clk 00:09:58]} {[%emt 00:00:02]} e6 {[%clk 00:09:56]}
{[%emt 00:00:01]} 3. Bf4 {[%clk 00:09:55]} {[%emt 00:00:02]} d5 {[%clk
00:09:53]} {[%emt 00:00:04]} 4. e3 {[%clk 00:09:49]} {[%emt 00:00:05]} a6
{[%clk 00:09:52]} {[%emt 00:00:02]} 5. a3 {[%clk 00:09:47]} {[%emt 00:00:02]}
Bd6 {[%clk 00:09:35]} {[%emt 00:00:16]} 6. Bd3 {[%clk 00:09:42]} {[%emt
00:00:05]} c5 {[%clk 00:09:04]} {[%emt 00:00:32]} 7. dxc5 {[%clk 00:09:40]}
{[%emt 00:00:02]} Bxc5 {[%clk 00:08:58]} {[%emt 00:00:05]} 8. Nf3 {[%clk
00:09:37]} {[%emt 00:00:03]} Nc6 {[%clk 00:08:52]} {[%emt 00:00:06]} 9. O-O
{[%clk 00:09:34]} {[%emt 00:00:02]} Bd6 {[%clk 00:08:52]} 10. Bxd6 {[%clk
00:09:09]} {[%emt 00:00:25]} Qxd6 {[%clk 00:08:51]} {[%emt 00:00:02]} 11. e4
{[%clk 00:09:07]} {[%emt 00:00:01]} d4 {[%clk 00:08:08]} {[%emt 00:00:42]} 12.
Ne2 {[%clk 00:09:02]} {[%emt 00:00:06]} e5 {[%clk 00:08:08]} {[%emt 00:00:01]}
13. Nd2 {[%clk 00:08:57]} {[%emt 00:00:05]} Ng4 {[%clk 00:07:15]} {[%emt
00:00:53]} 14. Ng3 {[%clk 00:08:18]} {[%emt 00:00:38]} Nh6 {[%clk 00:07:08]}
{[%emt 00:00:07]} 15. Nc4 {[%emt 00:00:11]} Qc7 {[%emt 00:00:01]} 16. a4 {[%clk
00:07:52]} {[%emt 00:00:15]} O-O {[%clk 00:07:00]} {[%emt 00:00:07]} 17. a5
{[%clk 00:07:50]} {[%emt 00:00:02]} Be6 {[%clk 00:06:57]} {[%emt 00:00:04]} 18.
Nb6 {[%clk 00:07:40]} {[%emt 00:00:10]} Rad8 {[%clk 00:06:51]} {[%emt
00:00:05]} 19. Qd2 {[%clk 00:07:36]} {[%emt 00:00:04]} f6 {[%clk 00:06:05]}
{[%emt 00:00:47]} 20. Ne2 {[%clk 00:07:14]} {[%emt 00:00:21]} Rd6 {[%clk
00:05:52]} {[%emt 00:00:13]} 21. Nc4 {[%clk 00:07:12]} {[%emt 00:00:02]} Rd7
{[%clk 00:05:49]} {[%emt 00:00:03]} 22. h3 {[%clk 00:07:07]} {[%emt 00:00:04]}
Kh8 {[%clk 00:05:19]} {[%emt 00:00:31]} 23. f4 {[%clk 00:06:57]} {[%emt
00:00:10]} Bxc4 {[%emt 00:00:55]} 24. Bxc4 {[%clk 00:06:53]} {[%emt 00:00:03]}
exf4 {[%clk 00:04:03]} {[%emt 00:00:21]} 25. Nxf4 {[%clk 00:06:45]} {[%emt
00:00:09]} Re8 {[%clk 00:03:52]} {[%emt 00:00:11]} 26. Bd5 {[%clk 00:06:28]}
{[%emt 00:00:17]} Ne7 {[%clk 00:03:43]} {[%emt 00:00:09]} 27. Bb3 {[%clk
00:05:51]} {[%emt 00:00:37]} Nc6 {[%clk 00:03:31]} {[%emt 00:00:13]} 28. Nd5
{[%clk 00:05:47]} {[%emt 00:00:03]} Qe5 {[%clk 00:03:23]} {[%emt 00:00:08]} 29.
Nxf6 {[%clk 00:05:40]} {[%emt 00:00:08]} gxf6 {[%clk 00:03:09]} {[%emt
00:00:14]} 30. Qxh6 {[%clk 00:05:37]} {[%emt 00:00:02]} Rg7 {[%clk 00:02:52]}
{[%emt 00:00:17]} 31. Qxf6 {[%clk 00:04:25]} {[%emt 00:01:12]} Qxe4 {[%clk
00:02:22]} {[%emt 00:00:31]} 32. Qf8+ {[%clk 00:03:36]} {[%emt 00:00:48]} Rg8
{[%clk 00:02:22]} 33. Qf3 {[%clk 00:03:02]} {[%emt 00:00:34]} Qxf3 {[%clk
00:02:16]} {[%emt 00:00:06]} 34. Rxf3 {[%clk 00:03:00]} {[%emt 00:00:02]} Rg7
{[%clk 00:02:13]} {[%emt 00:00:04]} 35. Raf1 {[%clk 00:02:50]} {[%emt
00:00:10]} h6 {[%clk 00:02:08]} {[%emt 00:00:04]} 36. Rf6 {[%clk 00:02:18]}
{[%emt 00:00:32]} Kh7 {[%clk 00:02:02]} {[%emt 00:00:07]} 37. Bc4 {[%clk
00:01:55]} {[%emt 00:00:22]} Ne5 {[%clk 00:01:43]} {[%emt 00:00:19]} 38. Bd5
{[%clk 00:01:50]} {[%emt 00:00:06]} Ng6 {[%clk 00:01:32]} {[%emt 00:00:11]} 39.
R1f2 {[%clk 00:01:34]} {[%emt 00:00:16]} Re5 {[%clk 00:01:26]} {[%emt
00:00:06]} 40. Bc4 {[%clk 00:01:30]} {[%emt 00:00:03]} Re1+ {[%clk 00:01:20]}
{[%emt 00:00:06]} 41. Kh2 {[%clk 00:01:29]} {[%emt 00:00:01]} Ne5 {[%clk
00:01:19]} {[%emt 00:00:02]} 42. Re6 {[%clk 00:01:19]} {[%emt 00:00:10]} Re3
{[%clk 00:01:12]} {[%emt 00:00:07]} 43. Bd5 {[%clk 00:01:11]} {[%emt 00:00:08]}
Re1 {[%clk 00:01:02]} {[%emt 00:00:09]} 44. Rf5 {[%clk 00:01:03]} {[%emt
00:00:08]} Re2 {[%clk 00:00:58]} {[%emt 00:00:04]} 45. Rfxe5 {[%clk 00:01:00]}
{[%emt 00:00:03]} 1-0